bitfinex-derivatives/quotes_SOLF0:USTF0_20251024
["timestamp","ask_amount","ask_price","bid_price","bid_amount"]
[1761323223234,0.79,189.98,189.89,2.73]
[1761323223531,5.53818965,189.97,189.89,2.73]
[1761323223832,4.74818965,189.96,189.89,2.73]
[1761323224026,4.74818965,189.95,189.89,2.73]
[1761323224226,0.79,189.97,189.89,2.73]
[1761323224433,4.74819625,189.96,189.89,2.73]
[1761323224633,4.74819625,189.95,189.89,2.73]
[1761323224833,0.79,189.97,189.89,2.73]
[1761323225033,4.74819625,189.96,189.89,2.73]
[1761323225332,4.74819625,189.95,189.89,2.73]
[1761323225534,0.79,189.97,189.89,2.73]
[1761323225833,5.53816669,189.96,189.89,2.73]
[1761323226032,4.74816669,189.95,189.89,2.73]
[1761323226235,4.7483962,189.94,189.89,2.73]
[1761323226534,0.79,189.96,189.89,2.73]
[1761323226727,4.7483939,189.95,189.89,2.73]
[1761323226921,0.79,189.96,189.89,2.73]
[1761323227128,4.74816552,189.95,189.89,2.73]
[1761323227328,4.74816552,189.94,189.89,2.73]
[1761323227636,0.79,189.96,189.89,2.73]
[1761323227824,4.74823293,189.95,189.89,2.73]
[1761323228025,0.79,189.93,189.89,2.73]
[1761323228227,0.79,189.93,189.89,66.53]
[1761323228430,0.79,189.93,189.9,2.72]
[1761323230239,0.79,189.98,189.9,2.72]
[1761323230431,0.79,189.96,189.9,2.72]
[1761323230632,0.79,189.94,189.9,2.72]
[1761323233339,0.79,189.98,189.9,2.72]
[1761323233643,5.49178601,189.97,189.9,2.72]
[1761323233842,4.70178601,189.96,189.9,2.72]
[1761323234038,0.79,189.97,189.9,2.72]
[1761323234240,4.70125886,189.96,189.9,2.72]
[1761323234440,0.79,189.97,189.9,2.72]
[1761323234639,4.70199707,189.96,189.92,3.11945791]
[1761323234840,0.79,190.0,189.94,2.72]
[1761323235041,5.49132766,189.99,189.94,2.72]
[1761323235240,4.70132766,189.98,189.94,2.72]
[1761323235436,0.79,189.99,189.94,2.72]
[1761323235642,4.70127853,189.98,189.94,2.72]
[1761323235840,0.79,189.99,189.94,2.72]
[1761323236041,4.70127853,189.98,189.94,2.72]
[1761323236242,0.79,189.99,189.94,2.72]
[1761323236541,0.79,190.02,189.94,2.72]
[1761323236751,4.70121975,190.01,189.94,2.72]
[1761323236952,4.70121975,190.0,189.94,2.72]
[1761323237254,4.70121975,189.99,189.94,2.72]
[1761323237452,0.79,190.02,189.94,2.72]
[1761323237651,4.70077977,190.01,189.94,2.72]
[1761323237953,4.70077977,190.0,189.96,2.72]
[1761323238150,0.79,190.02,189.96,2.72]
[1761323238347,5.49032566,190.01,189.96,2.72]
[1761323238544,4.70032566,190.0,189.96,2.72]
[1761323238745,0.79,190.01,189.96,2.72]
[1761323238946,5.48899834,190.0,189.96,2.72]
[1761323239150,4.69899834,189.99,189.96,2.72]
[1761323239359,0.79,190.0,189.96,2.72]
[1761323240654,0.79,190.04,189.96,2.72]
[1761323240854,0.79,190.02,189.96,2.72]
[1761323241056,0.79,190.0,189.96,2.72]
[1761323244951,4.69533731,189.99,189.93,2.72]
[1761323245152,0.79,189.97,189.93,2.72]
[1761323246060,1.99431168,189.99,189.93,2.72]
[1761323246264,5.4856233,189.98,189.93,2.72]
[1761323246556,4.91800567,190.03,189.93,2.72]
[1761323246557,0.79,190.01,189.93,2.72]
[1761323246856,5.4853817,190.0,189.93,2.72]
[1761323247062,5.4853817,189.99,189.93,2.72]
[1761323247259,0.79,189.97,189.93,2.72]
[1761323254667,0.79,190.0,189.93,2.72]
[1761323254866,4.69667283,189.99,189.93,2.72]
[1761323255069,0.79,190.0,189.93,2.72]
[1761323255261,5.4864462,189.99,189.93,2.72]
[1761323255455,0.79,189.99,189.93,2.72]
[1761323257079,5.48712283,189.98,189.93,2.72]
[1761323257374,0.79,189.98,189.93,2.72]
[1761323258572,4.69783525,189.97,189.93,2.72]
[1761323258774,0.79,189.98,189.93,2.72]
[1761323258974,4.69783525,189.97,189.93,2.72]
[1761323259174,0.79,189.98,189.93,2.72]
[1761323259366,4.69783525,189.97,189.93,2.72]
[1761323259567,0.79,189.97,189.93,2.72]
[1761323262672,0.79,189.95,189.93,2.72]
[1761323262878,0.79,189.99,189.93,2.72]
[1761323263074,0.79,189.97,189.93,2.72]
[1761323263271,4.76594663,189.96,189.93,2.72]
[1761323263468,0.79,189.97,189.93,2.72]
[1761323263673,5.55601334,189.96,189.93,2.72]
[1761323263872,0.79,189.96,189.93,2.72]
[1761323264073,0.79,189.99,189.93,2.72]
[1761323264274,5.55601512,189.98,189.93,2.72]
[1761323264579,5.55601512,189.97,189.93,2.72]
[1761323264779,0.79,189.97,189.93,2.72]
[1761323265578,4.76622789,189.96,189.93,2.72]
[1761323265780,5.55698703,189.95,189.91,2.82]
[1761323265977,0.79,189.95,189.91,2.82]
[1761323266383,2.78431168,189.98,189.91,2.82]
[1761323266591,4.76677133,189.97,189.91,2.82]
[1761323266882,4.76677133,189.96,189.91,2.82]
[1761323267082,4.76677133,189.95,189.91,2.82]
[1761323267383,2.78431168,189.98,189.91,2.82]
[1761323267583,4.7672169,189.97,189.91,2.82]
[1761323267782,4.7672169,189.96,189.91,2.82]
[1761323267982,0.79,189.98,189.91,2.82]
[1761323268184,4.76714491,189.97,189.91,2.82]
[1761323268485,4.76714491,189.96,189.91,2.82]
[1761323268783,4.76714491,189.95,189.91,2.82]
[1761323268986,0.79,189.98,189.91,2.82]
[1761323269187,4.76726529,189.97,189.91,2.82]
[1761323269386,4.76726529,189.96,189.91,2.82]
[1761323269584,4.76726529,189.95,189.91,2.82]
[1761323269889,0.79,189.98,189.91,2.82]
[1761323270088,4.76738791,189.97,189.91,2.82]
[1761323270287,4.76738791,189.96,189.91,2.82]
[1761323270483,4.76738791,189.95,189.91,2.82]
[1761323270688,0.79,189.96,189.91,2.82]
[1761323272792,4.7681523,189.95,189.91,2.82]
[1761323272990,0.79,189.96,189.91,2.82]
[1761323273291,4.7681523,189.95,189.91,2.82]
[1761323273491,0.79,189.96,189.91,2.82]
[1761323273694,4.76862401,189.95,189.91,2.82]
[1761323273892,0.79,189.96,189.91,2.82]
[1761323274094,4.76878233,189.95,189.91,2.82]
[1761323274289,0.79,189.96,189.91,2.82]
[1761323274491,4.76914582,189.95,189.91,2.82]
[1761323274691,0.79,189.96,189.91,2.82]
[1761323274990,4.76914582,189.95,189.91,2.82]
[1761323275181,0.79,189.96,189.91,2.82]
[1761323275386,4.76914517,189.95,189.91,2.82]
[1761323275581,0.79,189.96,189.91,2.82]
[1761323275786,4.76929576,189.95,189.91,2.82]
[1761323276091,0.79,189.96,189.91,2.82]
[1761323276292,4.76929579,189.95,189.91,2.82]
[1761323276592,0.79,189.96,189.91,2.82]
[1761323276783,4.76959791,189.95,189.91,2.82]
[1761323276988,0.79,189.96,189.91,2.82]
[1761323277190,4.76959791,189.95,189.91,2.82]
[1761323277488,0.79,189.96,189.91,2.82]
[1761323277784,4.76991353,189.95,189.91,2.82]
[1761323277988,0.79,189.96,189.91,2.82]
[1761323278189,4.76991353,189.95,189.91,2.82]
[1761323278389,0.79,189.96,189.91,2.82]
[1761323278594,4.77024282,189.95,189.91,2.82]
[1761323278794,0.79,189.96,189.91,2.82]
[1761323278997,4.77024282,189.95,189.91,2.82]
[1761323279295,0.78,189.98,189.91,2.82]
[1761323279495,5.55025618,189.97,189.91,2.82]
[1761323279696,5.55025618,189.96,189.91,2.82]
[1761323279996,4.77025618,189.95,189.91,2.82]
[1761323280195,0.78,189.96,189.91,2.82]
[1761323280397,4.77025618,189.95,189.91,2.82]
[1761323280695,0.78,189.96,189.91,2.82]
[1761323281097,4.76995596,189.95,189.91,2.82]
[1761323281296,0.78,189.96,189.91,2.82]
[1761323281498,4.76995906,189.95,189.91,2.82]
[1761323281691,0.78,189.96,189.91,2.82]
[1761323281990,4.76995906,189.95,189.91,2.82]
[1761323282194,0.78,189.96,189.91,2.82]
[1761323282394,4.7700327,189.95,189.91,2.82]
[1761323282596,0.78,189.96,189.91,2.82]
[1761323282800,4.77015657,189.95,189.92,1.99431168]
[1761323283099,0.78,190.0,189.93,2.9]
[1761323283403,0.78,189.98,189.93,2.9]
[1761323283592,5.55023237,189.97,189.93,2.9]
[1761323283898,4.77023237,189.96,189.93,2.9]
[1761323284094,4.77023237,189.95,189.93,2.9]
[1761323284294,0.78,189.98,189.93,2.9]
[1761323284594,5.55131751,189.97,189.93,2.9]
[1761323284797,4.77131751,189.96,189.93,2.9]
[1761323285097,0.78,189.97,189.93,2.9]
[1761323285297,4.77108836,189.96,189.93,2.9]
[1761323285497,0.78,189.97,189.93,2.9]
[1761323285697,4.77174772,189.96,189.93,2.9]
[1761323285898,0.78,189.97,189.93,2.9]
[1761323286100,4.77174772,189.96,189.93,2.9]
[1761323286300,4.77184185,189.95,189.93,2.9]
[1761323286499,0.78,189.97,189.92,2.9]
[1761323286799,0.78,189.95,189.92,2.9]
[1761323287294,0.78,189.95,189.93,2.9]
[1761323288902,1.99431168,190.0,189.93,2.9]
[1761323289103,0.79,189.98,189.93,2.9]
[1761323289306,0.79,189.96,189.93,2.9]
[1761323289494,4.74457004,189.95,189.93,2.9]
[1761323289694,0.79,189.96,189.93,2.9]
[1761323289892,4.74516227,189.95,189.93,2.9]
[1761323290096,0.79,189.96,189.93,2.9]
[1761323290292,4.74517722,189.95,189.93,2.9]
[1761323290495,0.79,189.96,189.93,2.9]
[1761323290703,4.74516883,189.95,189.93,2.9]
[1761323291005,0.79,189.96,189.93,2.9]
[1761323291203,4.74516818,189.95,189.93,2.9]
[1761323291405,0.79,189.96,189.93,2.9]
[1761323291604,4.74529674,189.95,189.93,2.9]
[1761323291806,0.79,189.96,189.93,2.9]
[1761323292006,4.74529674,189.95,189.93,2.9]
[1761323292216,4.74761007,189.94,189.93,2.9]
[1761323292410,0.79,189.96,189.93,2.9]
[1761323292603,4.74745933,189.95,189.93,2.9]
[1761323292804,0.79,189.96,189.93,2.9]
[1761323293009,4.74734463,189.95,189.93,2.9]
[1761323293310,0.79,189.96,189.93,2.9]
[1761323293510,4.74735646,189.95,189.93,2.9]
[1761323293706,1.99431168,190.0,189.93,2.9]
[1761323294011,5.53735646,189.99,189.93,2.9]
[1761323294202,0.79,189.97,189.93,2.9]
[1761323295416,0.79,190.0,189.93,2.9]
[1761323295614,4.74611876,189.99,189.93,2.9]
[1761323295812,4.74611876,189.98,189.93,2.9]
[1761323296108,4.74611876,189.97,189.93,2.9]
[1761323296305,0.79,190.0,189.93,2.9]
[1761323296506,0.79,190.0,189.92,4.7379]
[1761323296507,4.74571208,189.99,189.98,1.99431168]
[1761323296709,0.79,190.03,189.99,2.84]
[1761323296912,4.74503148,190.02,189.99,2.84]
[1761323297115,0.79,190.01,189.96,1.99431168]
[1761323297413,0.79,190.01,189.97,2.84]
[1761323297913,0.79,190.01,189.95,2.84]
[1761323298113,0.79,189.99,189.95,2.84]
[1761323299114,2.78431168,190.02,189.95,2.84]
[1761323299316,5.3643957,190.01,189.95,2.84]
[1761323299508,0.79,189.99,189.95,2.84]
[1761323299702,1.99431168,190.03,189.95,2.84]
[1761323299906,0.79,190.01,189.95,2.84]
[1761323300107,0.79,189.99,189.95,2.84]
[1761323301512,0.79,190.02,189.95,1.99431168]
[1761323301717,0.79,190.0,189.96,2.84]
[1761323311523,0.79,190.04,189.96,2.84]
[1761323311727,4.57147213,190.03,189.96,2.84]
[1761323311920,4.57147213,190.02,189.96,2.84]
[1761323312121,0.79,190.04,189.96,2.84]
[1761323312321,4.5709801,190.03,189.97,4.89158876]
[1761323312621,0.79,190.04,189.98,2.84]
[1761323312828,5.36034318,190.03,189.98,2.84]
[1761323313120,0.79,190.03,189.98,2.84]
[1761323313922,0.79,190.06,189.98,2.84]
[1761323314123,4.56952179,190.05,189.98,2.84]
[1761323314324,0.79,190.06,189.98,2.84]
[1761323314524,0.79,190.06,190.01,2.84]
[1761323316827,0.79,190.09,190.03,3.11605207]
[1761323317025,0.79,190.09,190.04,2.84]
[1761323317228,0.79,190.11,190.04,2.84]
[1761323323837,0.79,190.11,190.01,2.84]
[1761323327340,7.57562991,190.12,190.01,2.84]
[1761323327341,3.11605207,190.09,190.01,2.84]
[1761323327644,0.79,190.08,190.01,2.84]
[1761323344561,0.79,190.07,190.01,2.84]
[1761323346761,5.82188253,190.11,190.02,63.7]
[1761323346963,4.4688246,190.11,190.03,2.71]
[1761323347162,0.79,190.12,190.04,2.71]
[1761323347562,5.2588246,190.12,190.04,2.71]
[1761323347867,0.79,190.12,190.04,2.71]
[1761323348363,5.2588246,190.12,190.04,2.71]
[1761323348554,0.79,190.12,190.04,2.71]
[1761323348961,5.2588246,190.12,190.07,2.86]
[1761323349160,0.79,190.13,190.07,2.86]
[1761323349363,0.79,190.11,190.07,2.86]
[1761323351364,5.2588246,190.11,190.07,2.86]
[1761323351564,0.79,190.11,190.07,2.86]
[1761323358672,0.79,190.11,190.04,2.86]
[1761323361066,4.91031203,190.14,190.04,2.86]
[1761323361269,5.82188253,190.18,190.04,2.86]
[1761323361270,11.52219456,190.16,190.1,2.86]
[1761323361458,6.61188253,190.16,190.1,2.86]
[1761323361771,6.61188253,190.16,190.11,2.86]
[1761323362071,0.79,190.15,190.11,2.86]
[1761323368670,0.79,190.15,190.11,2.21243317]
[1761323368873,0.79,190.15,190.12,2.86]
[1761323371377,5.82188253,190.16,190.12,2.86]
[1761323371571,6.61188253,190.16,190.12,2.86]
[1761323371772,0.79,190.15,190.11,2.21243317]
[1761323371970,0.79,190.15,190.11,5.07243317]
[1761323374078,0.79,190.15,190.12,2.79]
[1761323374874,5.82188253,190.16,190.13,2.21243317]
[1761323375076,0.78,190.2,190.14,2.79]
[1761323375280,0.78,190.19,190.14,2.79]
[1761323385099,6.60188253,190.19,190.14,2.79]
[1761323385295,0.79,190.18,190.14,2.79]
[1761323394209,0.79,190.18,190.11,2.64]
[1761323394401,0.79,190.18,190.13,2.64]
[1761323398010,0.79,190.18,190.14,2.67]
[1761323401015,6.61188253,190.17,190.14,2.67]
[1761323403614,7.52727453,190.2,190.16,2.67]
[1761323403911,7.52727453,190.2,190.06,9.771603]
[1761323403912,6.73727453,190.2,190.18,2.67]
[1761323404711,7.52727453,190.2,190.18,2.67]
[1761323406810,0.79,190.19,190.16,2.67]
[1761323407514,0.79,190.19,190.15,2.21243317]
[1761323407711,6.73727453,190.2,190.13,4.87515198]
[1761323407712,0.79,190.17,190.13,4.87515198]
[1761323407918,0.79,190.17,190.12,7.65515198]
[1761323408122,0.79,190.17,190.13,2.78]
[1761323417724,5.82188253,190.18,190.13,2.78]
[1761323418521,6.61188253,190.18,190.13,2.78]
[1761323420129,0.79,190.17,190.13,2.78]
[1761323420628,0.79,190.13,190.1,2.78]
[1761323421019,2.21243317,190.13,190.1,2.78]
[1761323421225,0.79,190.12,190.1,2.78]
[1761323421424,0.79,190.12,190.06,2.78]
[1761323422834,5.70031203,190.12,190.06,2.78]
[1761323423136,0.79,190.12,190.06,2.78]
[1761323423730,0.79,190.1,190.06,2.78]
[1761323424242,0.79,190.08,190.03,2.78]
[1761323430238,5.82188253,190.1,190.03,2.78]
[1761323430732,0.79,190.09,190.04,2.78]
[1761323431941,5.82188253,190.1,190.04,2.78]
[1761323433543,5.82188253,190.1,190.06,2.78]
[1761323433846,5.82188253,190.14,190.06,2.78]
[1761323434344,0.79,190.13,190.06,2.78]
[1761323436947,5.82188253,190.14,190.06,2.78]
[1761323438549,0.79,190.15,190.06,2.78]
[1761323443354,3.7745385,190.14,190.06,2.78]
[1761323443550,3.7745385,190.13,190.06,2.78]
[1761323443744,3.7745385,190.12,190.06,2.78]
[1761323443944,0.79,190.14,190.06,2.78]
[1761323443945,3.7745385,190.13,190.06,2.78]
[1761323444146,3.7745385,190.12,190.06,2.78]
[1761323444445,0.79,190.16,190.06,2.78]
[1761323444446,3.7745385,190.15,190.06,2.78]
[1761323444645,3.7745385,190.14,190.06,2.78]
[1761323444841,3.7745385,190.13,190.06,2.78]
[1761323445047,3.7745385,190.15,190.06,2.78]
[1761323445247,3.7745385,190.14,190.06,2.78]
[1761323445453,3.7745385,190.13,190.06,2.78]
[1761323445662,6.61188253,190.16,190.06,2.78]
[1761323445954,3.77486452,190.15,190.06,2.78]
[1761323446253,3.77486452,190.14,190.06,2.78]
[1761323446453,3.77486452,190.13,190.06,2.78]
[1761323446646,6.61188253,190.16,190.06,2.78]
[1761323446850,3.77507214,190.15,190.06,2.78]
[1761323447056,3.77507214,190.14,190.06,2.78]
[1761323447258,3.77507214,190.13,190.06,2.78]
[1761323447460,6.61188253,190.16,190.06,2.78]
[1761323447756,3.77529213,190.15,190.06,2.78]
[1761323447951,3.77529213,190.14,190.06,2.78]
[1761323448157,3.77529213,190.13,190.06,2.78]
[1761323448359,3.77529213,190.12,190.06,2.78]
[1761323448653,0.79,190.14,190.06,2.78]
[1761323448955,3.77529213,190.13,190.06,2.78]
[1761323449154,3.77529213,190.12,190.06,2.78]
[1761323449355,3.77529213,190.13,190.06,2.78]
[1761323449558,3.77529213,190.12,190.06,2.78]
[1761323449757,3.77529213,190.13,190.06,2.78]
[1761323449959,3.77529213,190.12,190.06,2.78]
[1761323450259,3.77529213,190.13,190.06,2.78]
[1761323450556,3.77529213,190.12,190.06,2.78]
[1761323450747,3.77529213,190.13,190.06,2.78]
[1761323450947,3.77529213,190.12,190.06,2.78]
[1761323451154,0.79,190.14,190.06,2.78]
[1761323451349,3.77795673,190.13,190.06,2.78]
[1761323451557,3.77795673,190.12,190.06,2.78]
[1761323451856,0.79,190.14,190.06,2.78]
[1761323452158,3.77795617,190.13,190.06,2.78]
[1761323452457,3.77795617,190.12,190.06,2.78]
[1761323452658,3.77795617,190.11,190.06,2.78]
[1761323452857,0.79,190.14,190.06,6.24106071]
[1761323453162,4.56902522,190.13,190.07,2.72]
[1761323453460,4.56902522,190.12,190.07,2.72]
[1761323453759,3.77902522,190.11,190.07,2.72]
[1761323453958,3.77902522,190.1,190.07,2.72]
[1761323454152,0.79,190.12,190.07,2.72]
[1761323454352,3.78029337,190.11,190.07,2.72]
[1761323454554,3.78029337,190.1,190.07,2.72]
[1761323454759,0.79,190.12,190.07,2.72]
[1761323454959,3.78029337,190.11,190.07,2.72]
[1761323455257,3.78029337,190.1,190.07,2.72]
[1761323455454,0.79,190.12,190.07,2.72]
[1761323455659,3.78054109,190.11,190.07,2.72]
[1761323455856,3.78054109,190.1,190.07,2.72]
[1761323456054,0.79,190.12,190.07,2.72]
[1761323456263,3.78080824,190.11,190.07,2.72]
[1761323456464,3.78080824,190.1,190.07,2.72]
[1761323456653,0.79,190.12,190.07,2.72]
[1761323456853,3.78080824,190.11,190.07,2.72]
[1761323457153,3.78080824,190.1,190.07,2.72]
[1761323457349,0.79,190.12,190.07,2.72]
[1761323457560,3.78109496,190.11,190.07,2.72]
[1761323457863,3.78109496,190.1,190.07,2.72]
[1761323458059,0.79,190.12,190.07,2.72]
[1761323458252,3.78140255,190.11,190.07,2.72]
[1761323458453,3.78140255,190.1,190.07,2.72]
[1761323458653,0.79,190.12,190.07,2.72]
[1761323458854,3.78140255,190.11,190.07,2.72]
[1761323459064,3.78140255,190.1,190.07,2.72]
[1761323459363,0.79,190.12,190.07,2.72]
[1761323459564,3.7817322,190.11,190.07,2.72]
[1761323459760,3.7817322,190.1,190.07,2.72]
[1761323460065,0.79,190.12,190.07,2.72]
[1761323460361,3.78190088,190.11,190.07,2.72]
[1761323460562,5.82188253,190.16,190.05,171.14801353]
[1761323460563,0.78,190.09,190.05,171.14801353]
[1761323460760,4.56190088,190.08,190.06,2.72]
[1761323460957,0.78,190.08,190.05,171.14801353]
[1761323461263,0.78,190.08,190.06,2.72]
[1761323461869,4.91225933,190.12,190.06,2.72]
[1761323462061,0.78,190.1,190.06,2.72]
[1761323462254,3.78255239,190.09,190.06,2.72]
[1761323462454,3.78255239,190.08,190.06,2.72]
[1761323462749,0.78,190.1,190.06,2.72]
[1761323462953,3.78305089,190.09,190.06,2.72]
[1761323463155,3.78305089,190.08,190.06,2.72]
[1761323463355,0.78,190.1,190.06,2.72]
[1761323463555,3.78411207,190.09,190.06,2.72]
[1761323463768,3.78411207,190.08,190.06,2.72]
[1761323464062,0.78,190.1,190.06,2.72]
[1761323464264,3.78519738,190.09,190.06,2.72]
[1761323464462,3.78519738,190.08,190.06,2.72]
[1761323464760,0.78,190.1,190.06,2.72]
[1761323464957,3.78533484,190.09,190.06,2.72]
[1761323465161,3.78533484,190.08,190.06,2.72]
[1761323465354,0.78,190.1,190.06,2.72]
[1761323465550,3.78663843,190.09,190.06,2.72]
[1761323465765,3.78663843,190.08,190.06,2.72]
[1761323465966,0.78,190.1,190.06,2.72]
[1761323466161,3.78650426,190.09,190.06,2.72]
[1761323466465,3.78650426,190.08,190.06,2.72]
[1761323466660,0.78,190.1,190.06,2.72]
[1761323466862,3.78662315,190.09,190.06,2.72]
[1761323467158,3.78662315,190.08,190.06,2.72]
[1761323467458,0.78,190.11,190.06,2.72]
[1761323467648,4.5666266,190.1,190.06,2.72]
[1761323467848,3.7866266,190.09,190.06,2.72]
[1761323468050,3.7866266,190.08,190.06,2.72]
[1761323468264,0.78,190.1,190.06,2.72]
[1761323468467,3.78663888,190.09,190.06,2.72]
[1761323468672,3.78663888,190.08,190.06,2.72]
[1761323468963,0.78,190.1,190.06,2.72]
[1761323469162,3.78663888,190.09,190.06,2.72]
[1761323469360,3.78663888,190.08,190.06,2.72]
[1761323469560,0.78,190.1,190.06,2.72]
[1761323469760,3.78686289,190.09,190.06,2.72]
[1761323469959,0.78,190.1,190.06,2.72]
[1761323469960,3.78686289,190.08,190.06,2.72]
[1761323470159,3.7869718,190.07,190.06,2.72]
[1761323470762,0.78,190.06,189.99,6.09106071]
[1761323470955,4.5669718,190.05,189.99,2.63]
[1761323471158,4.5669718,190.04,189.99,2.63]
[1761323471357,3.7869718,190.03,189.99,2.63]
[1761323471557,3.7869718,190.02,189.99,2.63]
[1761323471771,0.78,190.04,189.99,2.63]
[1761323472063,3.84463311,190.03,189.99,2.63]
[1761323472259,3.84463311,190.02,189.99,2.63]
[1761323472459,0.78,190.04,189.99,2.63]
[1761323472659,3.84374474,190.03,189.99,2.63]
[1761323472864,3.84374474,190.02,189.99,2.63]
[1761323473067,0.78,190.03,189.99,2.63]
[1761323473265,3.8439399,190.02,189.99,2.63]
[1761323473565,0.78,190.03,189.99,2.63]
[1761323473763,3.82027693,190.02,189.99,2.63]
[1761323473968,3.82045251,190.01,189.99,2.63]
[1761323474159,0.78,190.03,189.99,2.63]
[1761323474360,3.81944593,190.02,189.99,2.63]
[1761323474667,5.69225933,190.07,189.99,2.63]
[1761323474871,3.81922723,190.06,189.99,2.63]
[1761323475164,3.81922723,190.05,189.99,2.63]
[1761323475365,0.78,190.03,189.99,2.63]
[1761323475665,3.81922723,190.02,189.99,2.63]
[1761323475867,0.78,190.03,189.99,2.63]
[1761323476069,3.81908716,190.02,189.99,2.63]
[1761323476262,0.78,190.03,189.99,2.63]
[1761323477266,3.80396275,190.02,189.99,2.63]
[1761323477567,0.78,190.03,189.99,2.63]
[1761323477767,3.80396312,190.02,189.99,2.63]
[1761323477968,0.78,190.03,189.99,2.63]
[1761323478169,3.80396312,190.02,189.99,2.63]
[1761323478370,0.78,190.03,189.99,2.63]
[1761323479562,0.78,190.01,189.95,2.63]
[1761323481864,7.26238954,190.04,189.95,2.63]
[1761323481865,0.78,189.99,189.95,2.63]
[1761323482067,4.58117654,189.98,189.91,2.63]
[1761323482260,0.78,189.98,189.91,2.63]
[1761323483971,4.5775216,189.98,189.91,2.63]
[1761323484175,0.78,189.98,189.91,2.63]
[1761323485767,4.5775216,189.98,189.91,2.63]
[1761323485967,0.78,189.98,189.91,2.63]
[1761323489378,3.79476141,189.99,189.93,2.63]
[1761323489579,5.82188253,190.0,189.93,2.63]
[1761323489580,6.60188253,190.0,189.93,2.63]
[1761323490470,0.78,189.99,189.93,2.63]
[1761323491371,0.78,189.99,189.9,267.13823998]
[1761323491372,5.82188253,190.0,189.95,2.63]
[1761323491576,0.78,190.0,189.95,2.63]
[1761323492979,0.78,190.0,189.97,2.63]
[1761323493279,0.78,190.02,189.97,2.63]
[1761323494577,0.78,190.02,189.99,2.69]
[1761323495782,6.61188253,190.04,189.99,2.69]
[1761323496275,5.82188253,190.04,190.01,2.69]
[1761323496473,6.61188253,190.04,190.01,2.69]
[1761323500882,0.79,190.03,190.01,2.69]
[1761323507584,4.63637652,190.03,190.01,2.69]
[1761323507791,0.79,190.03,190.01,2.69]
[1761323507991,4.63637652,190.03,190.01,2.69]
[1761323508187,0.79,190.03,190.01,2.69]
[1761323508384,4.63637652,190.03,190.01,2.69]
[1761323508586,0.79,190.03,190.01,2.69]
[1761323508886,4.63637652,190.03,190.01,2.69]
[1761323509085,0.79,190.03,190.01,2.69]
[1761323510595,0.79,190.01,189.97,2.62]
[1761323513400,3.85315385,190.0,189.97,2.62]
[1761323513599,1.9953552,190.03,189.97,2.62]
[1761323513799,0.79,190.01,189.97,2.62]
[1761323514097,3.85337028,190.0,189.97,2.62]